fUSD/lending_fUSD_20260416
["ID","MTS","AMOUNT","RATE_DAILY","PERIOD"]
[420592578,1776286027866,10000.01,8.622e-05,2]
[420592579,1776286027893,10000.01,8.622e-05,2]
[420592580,1776286027919,10000.01,8.622e-05,2]
[420592581,1776286027945,4475.01,8.622e-05,2]
[420592582,1776286027970,5000.01,8.622e-05,2]
[420592583,1776286027995,5000.01,8.622e-05,2]
[420592584,1776286028022,5000.01,8.622e-05,2]
[420592585,1776286077721,200.0,8.6e-05,2]
[420592586,1776286103102,158.0,8.6e-05,3]
[420592587,1776286145301,789.0,8.6e-05,3]
[420592588,1776286150840,163.0,8.6e-05,3]
[420592589,1776286206905,173.0,8.6e-05,3]
[420592590,1776286211776,750.0,8.6e-05,3]
[420592595,1776286233636,-262.0,8.611e-05,2]
[420592596,1776286233645,-702.06736685,8.611e-05,2]
[420592597,1776286233655,-2579.106,8.619e-05,2]
[420592598,1776286233664,-250.0,8.619e-05,2]
[420592599,1776286233674,-1200.0,8.62e-05,2]
[420592600,1776286233683,-500.0,8.621e-05,2]
[420592601,1776286233692,-500.0,8.621e-05,2]
[420592602,1776286233701,-311.20431632,8.621e-05,2]
[420592603,1776286233711,-159.80249003,8.621e-05,2]
[420592604,1776286233720,-500.0,8.621e-05,2]
[420592605,1776286233729,-500.0,8.621e-05,2]
[420592606,1776286233738,-500.0,8.621e-05,2]
[420592607,1776286234243,-446.20570852,8.621e-05,2]
[420592608,1776286234253,-500.0,8.621e-05,2]
[420592609,1776286234263,-191.65652579,8.621e-05,2]
[420592610,1776286234271,-500.0,8.621e-05,2]
[420592611,1776286234281,-500.0,8.621e-05,2]
[420592612,1776286234290,-500.0,8.621e-05,2]
[420592613,1776286234300,-500.0,8.621e-05,2]
[420592614,1776286234309,-500.0,8.621e-05,2]
[420592615,1776286234318,-500.0,8.621e-05,2]
[420592616,1776286234327,-500.0,8.621e-05,2]
[420592617,1776286234336,-500.0,8.621e-05,2]
[420592618,1776286234346,-500.0,8.621e-05,2]
[420592619,1776286234355,-500.0,8.621e-05,2]
[420592620,1776286234365,-500.0,8.621e-05,2]
[420592621,1776286234374,-500.0,8.621e-05,2]
[420592622,1776286234383,-500.0,8.621e-05,2]
[420592623,1776286234393,-500.0,8.621e-05,2]
[420592624,1776286234403,-500.0,8.621e-05,2]
[420592625,1776286234412,-500.0,8.621e-05,2]
[420592626,1776286234422,-600.0,8.621e-05,2]
[420592627,1776286234431,-353.52790522,8.621e-05,2]
[420592628,1776286234440,-500.0,8.621e-05,2]
[420592629,1776286234450,-500.0,8.621e-05,2]
[420592630,1776286234459,-418.71665123,8.621e-05,2]
[420592631,1776286234468,-500.0,8.621e-05,2]
[420592632,1776286234478,-500.0,8.621e-05,2]
[420592633,1776286234487,-500.0,8.621e-05,2]
[420592634,1776286234496,-500.0,8.621e-05,2]
[420592635,1776286234505,-500.0,8.621e-05,2]
[420592636,1776286234514,-500.0,8.621e-05,2]
[420592637,1776286234524,-500.0,8.621e-05,2]
[420592638,1776286234533,-500.0,8.621e-05,2]
[420592639,1776286234542,-500.0,8.621e-05,2]
[420592640,1776286234552,-500.0,8.621e-05,2]
[420592641,1776286234561,-500.0,8.621e-05,2]
[420592642,1776286234571,-500.0,8.621e-05,2]
[420592643,1776286234580,-500.0,8.621e-05,2]
[420592644,1776286234589,-500.0,8.621e-05,2]
[420592645,1776286234598,-500.0,8.621e-05,2]
[420592646,1776286234608,-500.0,8.621e-05,2]
[420592647,1776286234617,-500.0,8.621e-05,2]
[420592648,1776286234626,-500.0,8.621e-05,2]
[420592649,1776286234635,-500.0,8.621e-05,2]
[420592650,1776286234644,-500.0,8.621e-05,2]
[420592651,1776286234654,-292.37216748,8.621e-05,2]
[420592652,1776286234663,-450.95137702,8.621e-05,2]
[420592653,1776286234672,-500.0,8.621e-05,2]
[420592654,1776286234681,-500.0,8.621e-05,2]
[420592655,1776286234690,-500.0,8.621e-05,2]
[420592656,1776286234699,-500.0,8.621e-05,2]
[420592657,1776286234708,-500.0,8.621e-05,2]
[420592658,1776286234718,-500.0,8.621e-05,2]
[420592659,1776286234727,-500.0,8.621e-05,2]
[420592660,1776286234736,-500.0,8.621e-05,2]
[420592661,1776286234745,-500.0,8.621e-05,2]
[420592662,1776286234755,-500.0,8.621e-05,2]
[420592663,1776286234764,-500.0,8.621e-05,2]
[420592664,1776286234773,-500.0,8.621e-05,2]
[420592665,1776286234781,-500.0,8.621e-05,2]
[420592666,1776286234791,-500.0,8.621e-05,2]
[420592667,1776286234801,-500.0,8.621e-05,2]
[420592668,1776286234810,-500.0,8.621e-05,2]
[420592669,1776286234820,-500.0,8.621e-05,2]
[420592670,1776286234829,-500.0,8.621e-05,2]
[420592671,1776286234838,-500.0,8.621e-05,2]
[420592672,1776286234847,-500.0,8.621e-05,2]
[420592673,1776286234856,-500.0,8.621e-05,2]
[420592674,1776286234865,-500.0,8.621e-05,2]
[420592675,1776286234874,-500.0,8.621e-05,2]
[420592676,1776286234884,-500.0,8.621e-05,2]
[420592677,1776286234893,-500.0,8.621e-05,2]
[420592678,1776286234902,-500.0,8.621e-05,2]
[420592679,1776286234912,-500.0,8.621e-05,2]
[420592680,1776286234921,-500.0,8.621e-05,2]
[420592681,1776286234931,-500.0,8.621e-05,2]
[420592682,1776286234940,-500.0,8.621e-05,2]
[420592683,1776286234949,-500.0,8.621e-05,2]
[420592684,1776286234958,-500.0,8.621e-05,2]
[420592685,1776286234967,-500.0,8.621e-05,2]
[420592686,1776286234976,-500.0,8.621e-05,2]
[420592687,1776286234985,-620.22016495,8.621e-05,2]
[420592688,1776286234995,-500.0,8.621e-05,2]
[420592689,1776286235004,-500.0,8.621e-05,2]
[420592690,1776286235013,-500.0,8.621e-05,2]
[420592691,1776286235023,-500.0,8.621e-05,2]
[420592692,1776286235031,-500.0,8.621e-05,2]
[420592693,1776286235041,-321.91709659,8.621e-05,2]
[420592694,1776286235050,-500.0,8.621e-05,2]
[420592695,1776286235059,-500.0,8.621e-05,2]
[420592696,1776286235068,-500.0,8.621e-05,2]
[420592697,1776286235077,-500.0,8.621e-05,2]
[420592698,1776286235088,-500.0,8.621e-05,2]
[420592699,1776286235097,-500.0,8.621e-05,2]
[420592700,1776286235107,-500.0,8.621e-05,2]
[420592701,1776286235116,-500.0,8.621e-05,2]
[420592702,1776286235125,-500.0,8.621e-05,2]
[420592703,1776286235134,-543.83419318,8.621e-05,2]
[420592704,1776286235143,-500.0,8.621e-05,2]
[420592705,1776286235153,-500.0,8.621e-05,2]
[420592706,1776286235162,-500.0,8.621e-05,2]
[420592707,1776286235171,-521.91709659,8.621e-05,2]
[420592708,1776286235180,-500.0,8.621e-05,2]
[420592709,1776286235190,-500.0,8.621e-05,2]
[420592710,1776286235199,-191.01899621,8.621e-05,2]
[420592711,1776286235208,-500.0,8.621e-05,2]
[420592712,1776286235217,-500.0,8.621e-05,2]
[420592713,1776286235227,-500.0,8.621e-05,2]
[420592714,1776286235237,-500.0,8.621e-05,2]
[420592715,1776286235246,-191.01899621,8.621e-05,2]
[420592716,1776286235256,-1691.01899621,8.621e-05,2]
[420592717,1776286235271,-150.0,8.621e-05,2]
[420592718,1776286235281,-631462.7015,8.622e-05,2]
[420592719,1776286235290,-22131.0112,8.622e-05,2]
[420592720,1776286235301,-20000.02,8.622e-05,2]
[420592721,1776286235311,-2500.0,8.622e-05,2]
[420592722,1776286235321,-208.15546082,8.622e-05,2]
[420592723,1776286235331,-634.16721977,8.622e-05,2]
[420592724,1776286235341,-722.20614992,8.622e-05,2]
[420592725,1776286235351,-500.0,8.703e-05,2]
[420592726,1776286235361,-256.22,8.721e-05,2]
[420592727,1776286235371,-150.0,8.974e-05,2]
[420592728,1776286235380,-223.408545,8.975e-05,2]
[420592729,1776286235390,-761.26,9.412e-05,2]
[420592730,1776286235400,-299.99,9.412e-05,2]
[420592731,1776286235410,-250.0,9.481e-05,2]
[420592732,1776286235420,-1680.0,9.482e-05,2]
[420592733,1776286235430,-255.0,9.483e-05,2]
[420592734,1776286235440,-250.0,9.483e-05,2]
[420592735,1776286235450,-9999.99,9.582e-05,2]
[420592736,1776286235460,-999.99,9.582e-05,2]
[420592737,1776286235470,-4999.99,9.582e-05,2]
[420592738,1776286235479,-150.99,9.582e-05,2]
[420592739,1776286235490,-9999.99,9.582e-05,2]
[420592740,1776286235500,-1839.65,9.671e-05,2]
[420592741,1776286235509,-500.0,9.828e-05,2]
[420592742,1776286235519,-849.0,9.839e-05,2]
[420592743,1776286235529,-285.16137119,9.839e-05,2]
[420592744,1776286235539,-233.0,9.869e-05,2]
[420592745,1776286235548,-250.0,9.879e-05,2]
[420592746,1776286235558,-254.0,9.888e-05,2]
[420592747,1776286235567,-1815.0,9.898e-05,2]
[420592748,1776286235577,-283.0,9.908e-05,2]
[420592749,1776286235586,-500.0,9.938e-05,2]
[420592750,1776286235597,-1116.0,9.946e-05,2]
[420592751,1776286235607,-656.0,9.966e-05,2]
[420592752,1776286235616,-450.0,9.986e-05,2]
[420592753,1776286235626,-150.0,0.0001,2]
[420592754,1776286235635,-1200.0,0.0001,3]
[420592755,1776286235645,-500.0,0.0001,2]
[420592756,1776286235659,-500.0,0.0001,2]
[420592757,1776286235669,-500.0,0.0001,2]
[420592758,1776286235679,-500.0,0.0001,2]
[420592759,1776286235688,-500.0,0.0001,2]
[420592760,1776286235698,-500.0,0.0001,2]
[420592761,1776286235708,-500.0,0.0001,2]
[420592762,1776286235718,-500.0,0.0001,2]
[420592763,1776286235728,-500.0,0.0001,2]
[420592764,1776286235738,-500.0,0.0001,2]
[420592765,1776286235748,-500.0,0.0001,2]
[420592766,1776286235758,-151.0,0.0001,2]
[420592767,1776286235768,-151.0,0.0001,2]
[420592768,1776286235777,-151.0,0.0001,2]
[420592769,1776286235787,-151.0,0.0001,2]
[420592770,1776286235797,-151.0,0.0001,2]
[420592771,1776286235807,-151.0,0.0001,2]
[420592772,1776286235817,-151.0,0.0001,2]
[420592773,1776286235826,-151.0,0.0001,2]
[420592774,1776286235836,-151.0,0.0001,2]
[420592775,1776286235846,-151.0,0.0001,2]
[420592776,1776286235856,-151.0,0.0001,2]
[420592777,1776286235865,-166.46,0.00010165,2]
[420592778,1776286235875,-1028.31,0.00010309,2]
[420592779,1776286235885,-150.0,0.00010325,2]
[420592780,1776286235895,-150.0,0.00010326,2]
[420592781,1776286235905,-190.504091,0.00010327,2]
[420592782,1776286235915,-200.0,0.00010394,2]
[420592783,1776286235925,-211.21,0.00010421,2]
[420592784,1776286235935,-2351.0,0.0001043,2]
[420592785,1776286235946,-433.0,0.00010431,2]
[420592786,1776286235956,-173.0,0.00010528,3]
[420592787,1776286235966,-750.0,0.00010528,3]
[420592788,1776286235976,-171.0,0.00010562,2]
[420592789,1776286235986,-152.0,0.00010583,2]
[420592790,1776286235996,-182.0,0.00010604,2]
[420592791,1776286236006,-305.0,0.00010625,2]
[420592792,1776286236016,-1540.0,0.00010858,2]
[420592793,1776286236026,-388.0,0.00010879,2]
[420592794,1776286236036,-250.0,0.00010879,2]
[420592795,1776286236046,-9189.5233479,0.000109,2]
[420592796,1776286236067,-3733.10995081,0.000109,2]
[420592797,1776286236077,-1927.25949043,0.000109,2]
[420592798,1776286236088,-9524.57414544,0.000109,2]
[420592799,1776286236110,-1470.79966284,0.000109,2]
[420592800,1776286236120,-12922.63329871,0.000109,2]
[420592801,1776286236129,-1277.0,0.00010901,2]
[420592802,1776286236140,-581.0,0.00010923,2]
[420592803,1776286236150,-1451.0,0.00010944,2]
[420592804,1776286236160,-6230.74832888,0.00011099,2]
[420592805,1776286236170,-6230.74832882,0.00011099,2]
[420592806,1776286236179,-6230.74832882,0.00011099,2]
[420592807,1776286236188,-6230.74832882,0.00011099,2]
[420592808,1776286236198,-191.4747,0.000113,2]
[420592809,1776286236209,-15853.93,0.00011409,2]
[420592810,1776286236219,-690.0,0.00011473,2]
[420592811,1776286236228,-736.0,0.00011474,2]
[420592812,1776286236238,-12922.63329871,0.00011684,2]
[420592813,1776286236248,-6230.74832882,0.00011801,2]
[420592814,1776286236258,-150.0,0.00012131,2]
[420592815,1776286236268,-209.40437684,0.00012179,2]
[420592816,1776286236277,-173.0,0.00012456,3]
[420592817,1776286236288,-750.0,0.00012456,3]
[420592818,1776286236298,-244.4171,0.000126,2]
[420592819,1776286236308,-6230.74832882,0.00012621,2]
[420592820,1776286236319,-645.0,0.00012621,2]
[420592821,1776286236329,-12922.63329871,0.00012738,2]
[420592822,1776286236339,-250.0,0.00013,2]
[420592823,1776286236349,-160.0,0.00013021,2]
[420592824,1776286236359,-622.0,0.0001311,2]
[420592825,1776286236369,-3527.0,0.0001311,2]
[420592826,1776286236379,-1047.0,0.0001311,2]
[420592827,1776286236389,-1264.0,0.0001311,2]
[420592828,1776286236398,-1218.0,0.0001311,2]
[420592829,1776286236408,-238.268,0.0001311,2]
[420592830,1776286236419,-6027.0,0.0001311,2]
[420592831,1776286236429,-3777.0,0.0001311,2]
[420592832,1776286236440,-500.0,0.00013402,2]
[420592833,1776286236455,-500.0,0.00013402,2]
[420592834,1776286236466,-500.0,0.00013402,2]
[420592835,1776286236477,-500.0,0.00013402,2]
[420592836,1776286236488,-500.0,0.00013402,2]
[420592837,1776286236499,-500.0,0.00013402,2]
[420592838,1776286236510,-500.0,0.00013402,2]
[420592839,1776286236521,-500.0,0.00013402,2]
[420592840,1776286236532,-500.0,0.00013402,2]
[420592841,1776286236543,-721.12765535,0.00013402,2]
[420592842,1776286236553,-500.0,0.00013402,2]
[420592843,1776286236564,-500.0,0.00013402,2]
[420592844,1776286236575,-1428.38747117,0.00013402,2]
[420592845,1776286236585,-693.3919763,0.00013402,2]
[420592846,1776286236595,-200.0,0.00013402,2]
[420592847,1776286236605,-209.40437684,0.00013402,2]
[420592848,1776286236615,-151.0,0.00013402,2]
[420592849,1776286236625,-235.75327194,0.00013402,2]
[420592850,1776286236635,-244.476143,0.00013402,2]
[420592851,1776286236644,-253.52176029,0.00013402,2]
[420592852,1776286236655,-262.90206542,0.00013402,2]
[420592853,1776286236666,-272.62944185,0.00013402,2]
[420592854,1776286236677,-282.71673119,0.00013402,2]
[420592855,1776286236687,-244.99885779,0.00013402,2]
[420592856,1776286236697,-279.9045709,0.00013402,2]
[420592857,1776286236710,-150.0,0.00013425,2]
[420592858,1776286236720,-150.0,0.00013425,2]
[420592859,1776286236730,-150.0,0.00013425,2]
[420592860,1776286236739,-150.0,0.00013425,2]
[420592861,1776286236750,-150.0,0.00013425,2]
[420592862,1776286236761,-260.28896982,0.00013425,2]
[420592863,1776286236771,-184.51547503,0.00013425,2]
[420592864,1776286236780,-150.0,0.00013425,2]
[420592865,1776286236790,-150.0,0.00013425,2]
[420592866,1776286236800,-153.81448557,0.00013425,2]
[420592867,1776286236810,-150.0,0.00013425,2]
[420592868,1776286236820,-187.64112077,0.00013425,2]
[420592869,1776286236829,-150.0,0.00013425,2]
[420592870,1776286236839,-150.0,0.00013425,2]
[420592871,1776286236849,-151.78459476,0.00013425,2]
[420592872,1776286236859,-150.0,0.00013425,2]
[420592873,1776286236869,-150.0,0.00013425,2]
[420592874,1776286236879,-150.0,0.00013425,2]
[420592875,1776286236888,-150.0,0.00013425,2]
[420592876,1776286236899,-150.0,0.00013425,2]
[420592877,1776286236920,-250.0,0.00013425,2]
[420592878,1776286236931,-500.0,0.00013425,2]
[420592879,1776286236941,-500.0,0.00013425,2]
[420592880,1776286236951,-500.0,0.00013425,2]
[420592881,1776286236961,-184.44329707,0.00013425,2]
[420592882,1776286236970,-500.0,0.00013425,2]
[420592883,1776286236980,-500.0,0.00013425,2]
[420592884,1776286236990,-500.0,0.00013425,2]
[420592885,1776286237000,-500.0,0.00013425,2]
[420592886,1776286237010,-500.0,0.00013425,2]
[420592887,1776286237020,-500.0,0.00013425,2]
[420592888,1776286237031,-500.0,0.00013425,2]
[420592889,1776286237042,-500.0,0.00013425,2]
[420592890,1776286237052,-500.0,0.00013425,2]
[420592891,1776286237063,-500.0,0.00013425,2]
[420592892,1776286237073,-500.0,0.00013425,2]
[420592893,1776286237084,-500.0,0.00013425,2]
[420592894,1776286237094,-500.0,0.00013425,2]
[420592895,1776286237104,-500.0,0.00013425,2]
[420592896,1776286237114,-500.0,0.00013425,2]
[420592897,1776286237124,-500.0,0.00013425,2]
[420592898,1776286237135,-500.0,0.00013425,2]
[420592899,1776286237145,-449.0,0.00013425,2]
[420592900,1776286237155,-449.0,0.00013425,2]
[420592901,1776286237166,-449.0,0.00013425,2]
[420592902,1776286237177,-449.0,0.00013425,2]
[420592903,1776286237187,-449.0,0.00013425,2]
[420592904,1776286237198,-449.0,0.00013425,2]
[420592905,1776286237208,-449.0,0.00013425,2]
[420592906,1776286237218,-449.0,0.00013425,2]
[420592907,1776286237228,-449.0,0.00013425,2]
[420592908,1776286237238,-449.0,0.00013425,2]
[420592909,1776286237248,-449.0,0.00013425,2]
[420592910,1776286237259,-449.0,0.00013425,2]
[420592911,1776286237270,-449.0,0.00013425,2]
[420592912,1776286237280,-264.6140262,0.00013425,2]
[420592913,1776286237296,-184.3859738,0.00013425,2]
[420592914,1776286237306,-368.0013739,0.00013425,2]
[420592915,1776286237414,-80.9986261,0.00013425,2]
[420592916,1776286237425,-449.0,0.00013425,2]
[420592917,1776286237436,-449.0,0.00013425,2]
[420592918,1776286237447,-386.66200373,0.00013425,2]
[420592919,1776286237459,-62.33799627,0.00013425,2]
[420592920,1776286237470,-449.0,0.00013425,2]
[420592921,1776286237481,-449.0,0.00013425,2]
[420592922,1776286237491,-449.0,0.00013425,2]
[420592923,1776286237502,-449.0,0.00013425,2]
[420592924,1776286237512,-449.0,0.00013425,2]
[420592925,1776286237523,-472.0,0.00013425,2]
[420592926,1776286237538,-500.0,0.00013425,2]
[420592927,1776286237549,-373.45204553,0.00013425,2]
[420592928,1776286237666,-8.70414282,0.00013425,2]
[420592929,1776286237677,-150.0,0.00013425,2]
[420592930,1776286237688,-325.32971091,0.00013441,2]
[420592931,1776286237701,-514.62729366,0.00013441,2]
[420593001,1776286240511,-313.85129924,8.621e-05,2]
[420593002,1776286240523,-186.14870076,8.621e-05,2]
[420593003,1776286240532,-83.02445924,0.00013441,2]
[420593004,1776286240545,-5307.76686501,0.00013441,2]
[420593005,1776286240555,-10000.0,0.00013445,2]
[420593006,1776286240564,-151.0,0.00013457,2]
[420593007,1776286240574,-502.0,0.000135,2]
[420593008,1776286240583,-381.5027972,0.0001351,2]
[420593009,1776286240593,-500.0,0.0001351,2]
[420593010,1776286240603,-151.0,0.00013512,2]
[420593011,1776286240612,-151.0,0.00013567,2]
[420593012,1776286240621,-151.0,0.00013622,2]
[420593013,1776286240631,-151.0,0.00013677,2]
[420593014,1776286240640,-500.0,0.00013698,2]
[420593015,1776286240650,-500.0,0.00013698,2]
[420593016,1776286240660,-500.0,0.00013698,2]
[420593017,1776286240670,-500.0,0.00013698,2]
[420593018,1776286240680,-500.0,0.00013698,2]
[420593019,1776286240690,-570.29159702,0.00013698,2]
[420593020,1776286240700,-500.0,0.00013698,2]
[420593021,1776286240709,-500.0,0.00013698,2]
[420593022,1776286240719,-500.0,0.00013698,2]
[420593023,1776286240728,-500.0,0.00013698,2]
[420593024,1776286240738,-500.0,0.00013698,2]
[420593025,1776286240747,-500.0,0.00013698,2]
[420593026,1776286240757,-500.0,0.00013698,2]
[420593027,1776286240766,-500.0,0.00013698,2]
[420593028,1776286240776,-500.0,0.00013698,2]
[420593029,1776286240785,-500.0,0.00013698,2]
[420593030,1776286240795,-500.0,0.00013698,2]
[420593031,1776286240805,-500.0,0.00013698,2]
[420593032,1776286240815,-500.0,0.00013698,2]
[420593033,1776286240824,-500.0,0.00013698,2]
[420593034,1776286240833,-500.0,0.00013698,2]
[420593035,1776286240843,-500.0,0.00013698,2]
[420593036,1776286240852,-500.0,0.00013698,2]
[420593037,1776286240862,-500.0,0.00013698,2]
[420593038,1776286240872,-500.0,0.00013698,2]
[420593039,1776286240882,-500.0,0.00013698,2]
[420593040,1776286240891,-500.0,0.00013698,2]
[420593041,1776286240901,-500.0,0.00013698,2]
[420593042,1776286240910,-500.0,0.00013698,2]
[420593043,1776286240920,-582.6,0.00013698,2]
[420593044,1776286240929,-582.6,0.00013698,2]
[420593045,1776286240939,-582.6,0.00013698,2]
[420593046,1776286240949,-582.6,0.00013698,2]
[420593047,1776286240958,-501.16478036,0.00013699,2]
[420593048,1776286240967,-500.0,0.00013699,2]
[420593049,1776286240977,-500.0,0.00013699,2]
[420593050,1776286240987,-1000.0,0.00013699,7]
[420593051,1776286240996,-1946.75,0.000137,2]
[420593052,1776286241006,-1946.75,0.000137,2]
[420593053,1776286241015,-151.0,0.00013732,2]
[420593054,1776286241025,-151.0,0.00013787,2]
[420593055,1776286241035,-12922.63329871,0.00013792,2]
[420593056,1776286241044,-151.0,0.00013842,2]
[420593057,1776286241054,-151.0,0.00013897,2]
[420593058,1776286241064,-311.998,0.000139,2]
[420593059,1776286241073,-1481.23780761,0.0001395,2]
[420593060,1776286241082,-200.0,0.0001395,2]
[420593061,1776286241092,-217.15233878,0.0001395,2]
[420593062,1776286241102,-151.0,0.00013952,2]
[420593063,1776286241112,-322.933968,0.00014095,7]
[420593064,1776286241121,-253.990532,0.00014147,7]
[420593065,1776286241131,-502.2335428,0.00014247,2]
[420593066,1776286241140,-1001.61585125,0.00014247,2]
[420593067,1776286241150,-6230.74832882,0.0001426,2]
[420593068,1776286241159,-502.0,0.00014353,2]
[420593069,1776286241169,-155.85,0.00014384,2]
[420593070,1776286241179,-173.0,0.00014385,3]
[420593071,1776286241188,-750.0,0.00014385,3]
[420593072,1776286241198,-1536.04360649,0.00014498,2]
[420593073,1776286241208,-200.0,0.00014498,2]
[420593074,1776286241217,-225.18697532,0.00014498,2]
[420593075,1776286241227,-2400.0,0.000147,5]
[420593076,1776286241237,-1099.64356121,0.00014764,2]
[420593077,1776286241247,-200.0,0.00014795,3]
[420593078,1776286241256,-200.0,0.00014795,3]
[420593079,1776286241266,-3600.0,0.000148,5]
[420593080,1776286241275,-12922.63329871,0.00014846,2]
[420593081,1776286241285,-500.0,0.00014899,2]
[420593082,1776286241295,-274.6601975,0.00014899,2]
[420593083,1776286241318,-225.3398025,0.00014899,2]
[420593084,1776286241328,-49.19071793,0.000149,5]
[420593085,1776286241354,-408.54905294,0.000149,5]
[420593087,1776286241646,-655.44057045,0.00011099,2]
[420593088,1776286241656,-514.07266405,0.000149,5]
[420593089,1776286241668,-512.27802841,0.000149,5]
[420593090,1776286241698,-950.56,0.000149,5]
[420593091,1776286241719,-482.25934277,0.000149,5]
[420593102,1776286245624,-2473.0,0.0001311,2]
[420593103,1776286245633,-150.0,0.00013425,2]
[420593104,1776286245642,-150.0,0.00013425,2]
[420593105,1776286245651,-213.5793185,0.00013425,2]
[420593106,1776286245661,-150.0,0.00013425,2]
[420593107,1776286245672,-1883.0901939,0.000149,5]
[420593108,1776286245683,-300.0,0.00015,2]
[420593109,1776286245693,-478.0,0.00015022,5]
[420593110,1776286245702,-551.0,0.00015022,2]
[420593111,1776286245711,-830.0,0.00015022,2]
[420593112,1776286245721,-1487.0,0.00015022,2]
[420593113,1776286245730,-1592.87721993,0.00015046,2]
[420593114,1776286245739,-200.0,0.00015046,2]
[420593115,1776286245748,-233.51889341,0.00015046,2]
[420593116,1776286245758,-800.83928989,0.00015068,2]
[420593117,1776286245767,-6230.74832882,0.0001508,2]
[420593118,1776286245776,-2041.96847627,0.00015135,2]
[420593119,1776286245785,-151.07097,0.0001515,2]
[420593120,1776286245795,-151.07098,0.0001515,2]
[420593121,1776286245804,-186.07,0.00015164,2]
[420593122,1776286245813,-166.0523,0.0001517,2]
[420593123,1776286245823,-1000.0,0.00015174,2]
[420593124,1776286245832,-500.0,0.00015177,2]
[420593125,1776286245841,-500.0,0.00015177,2]
[420593126,1776286245850,-500.0,0.00015178,2]
[420593127,1776286245860,-500.0,0.00015178,2]
[420593128,1776286245869,-398.265,0.000152,2]
[420593129,1776286245879,-502.0,0.00015205,3]
[420593130,1776286245888,-1000.0,0.00015221,2]
[420593131,1776286245897,-316.82705904,0.00015225,2]
[420593132,1776286245906,-250.0,0.00015233,2]
[420593133,1776286245915,-250.0,0.00015233,2]
[420593134,1776286245925,-212.96,0.00015233,2]
[420593135,1776286245934,-500.0,0.00015234,2]
[420593136,1776286245944,-500.0,0.00015234,2]
[420593137,1776286245953,-500.0,0.00015234,2]
[420593138,1776286245962,-150.0,0.00015234,2]
[420593139,1776286245971,-500.0,0.00015234,2]
[420593140,1776286245981,-500.0,0.00015234,2]
[420593141,1776286245990,-500.0,0.00015234,2]
[420593142,1776286245999,-500.0,0.00015234,2]
[420593143,1776286246009,-500.0,0.00015234,2]
[420593144,1776286246017,-500.0,0.00015234,2]
[420593145,1776286246028,-500.0,0.00015234,2]
[420593146,1776286246037,-500.0,0.00015234,2]
[420593147,1776286246046,-500.0,0.00015234,2]
[420593148,1776286246055,-582.6,0.00015234,2]
[420593149,1776286246065,-582.6,0.00015234,2]
[420593151,1776286246074,-582.6,0.00015234,2]
[420593152,1776286246084,-352.0,0.00015235,5]
[420593153,1776286246094,-40079.37820996,0.00015235,2]
[420593154,1776286246184,-697.0,0.00015235,2]
[420593155,1776286246617,-655.44057038,0.00011099,2]
[420593156,1776286246627,-276.10546392,0.00015,2]
[420593193,1776286274709,57091.262,8.522e-05,2]
[420593194,1776286328788,600.0,8.522e-05,3]
[420593195,1776286355809,39675.738,8.522e-05,2]
[420593196,1776286364618,-6492.877109,8.522e-05,2]
[420593197,1776286364808,-10000.01,8.522e-05,2]
[420593198,1776286364945,-10000.01,8.522e-05,2]